bitfinex/quotes_BTCUSD_20240815
["timestamp","ask_amount","ask_price","bid_price","bid_amount"]
[1723701929997,0.11981,58426.0,58422.0,0.023]
[1723701930202,0.11981,58426.0,58422.0,0.142817]
[1723701930409,0.119812,58425.0,58422.0,0.023]
[1723701930642,0.360435,58425.0,58424.0,0.001]
[1723701930849,0.53198954,58425.0,58424.0,0.001]
[1723701931078,0.53198954,58425.0,58409.0,0.239687]
[1723701931079,0.119832,58415.0,58409.0,0.239687]
[1723701931282,0.119836,58413.0,58410.0,0.1]
[1723701931487,0.119836,58413.0,58409.0,0.119843]
[1723701931725,0.0791,58415.0,58410.0,0.1]
[1723701931941,0.0791,58415.0,58406.0,0.11985]
[1723701931942,0.119842,58410.0,58406.0,0.11985]
[1723701932145,0.0791,58415.0,58407.0,0.239695]
[1723701932146,0.119834,58414.0,58407.0,0.239695]
[1723701932347,0.119834,58414.0,58409.0,0.119844]
[1723701932568,0.119834,58414.0,58410.0,0.119842]
[1723701932766,0.198933,58415.0,58410.0,0.119842]
[1723701932996,0.0791,58415.0,58405.0,0.300205]
[1723701933226,0.119837,58413.0,58411.0,0.023]
[1723701933427,0.119837,58413.0,58409.0,0.023]
[1723701933575,0.119837,58413.0,58410.0,0.006]
[1723701933785,0.239657,58417.0,58411.0,0.142839]
[1723701933985,0.239657,58417.0,58409.0,0.38253]
[1723701934186,0.119834,58414.0,58409.0,0.142843]
[1723701934590,0.121832,58415.0,58410.0,0.119842]
[1723701934792,0.119832,58415.0,58411.0,0.023]
[1723701934991,0.119832,58415.0,58411.0,0.142839]
[1723701935140,0.119834,58414.0,58411.0,0.023]
[1723701935344,0.239666,58415.0,58411.0,0.023]
[1723701935546,0.239661,58416.0,58405.0,0.0605]
[1723701935547,0.119836,58413.0,58408.0,0.119845]
[1723701935750,0.11984,58411.0,58409.0,0.023]
[1723701935976,0.119831,58416.0,58410.0,0.119841]
[1723701936177,0.124828,58417.0,58411.0,0.023]
[1723701936374,0.119828,58417.0,58412.0,0.119837]
[1723701936597,0.119832,58415.0,58413.0,0.023]
[1723701936800,0.359502,58414.0,58413.0,0.023]
[1723701937206,0.119841,58411.0,58408.0,0.023]
[1723701937469,0.17155454,58411.0,58397.0,0.064]
[1723701937639,0.22577727,58413.0,58392.0,0.1443]
[1723701937640,0.0761,58403.0,58392.0,0.1443]
[1723701937855,0.0761,58403.0,58392.0,0.064]
[1723701938073,0.08577727,58405.0,58384.0,0.0803]
[1723701938074,0.0761,58395.0,58384.0,0.0803]
[1723701938317,0.23975,58394.0,58385.0,0.239785]
[1723701938502,0.0761,58395.0,58385.0,0.239785]
[1723701938707,0.119878,58393.0,58385.0,0.239785]
[1723701938911,0.119879,58392.0,58385.0,0.239785]
[1723701939063,0.119877,58393.0,58388.0,0.119886]
[1723701939877,0.0761,58395.0,58389.0,0.119883]
[1723701939878,0.195974,58395.0,58389.0,0.119883]
[1723701940081,0.119875,58394.0,58390.0,0.023]
[1723701940255,0.119877,58393.0,58390.0,0.023]
[1723701940660,0.001,58393.0,58390.0,0.142883]
[1723701941311,0.119878,58393.0,58390.0,0.023]
[1723701941511,0.119878,58393.0,58389.0,0.142885]
[1723701941704,0.0791,58395.0,58389.0,0.142885]
[1723701941705,0.195974,58395.0,58390.0,0.119883]
[1723701941921,0.119875,58394.0,58391.0,0.023]
[1723701942132,0.001,58393.0,58391.0,0.023]
[1723701942791,0.002,58393.0,58391.0,0.023]
[1723701943465,0.239755,58393.0,58387.0,0.142889]
[1723701943688,0.119879,58392.0,58387.0,0.142889]
[1723701944271,0.239759,58392.0,58387.0,0.023]
[1723701944494,0.0761,58395.0,58385.0,0.123]
[1723701944723,0.119888,58388.0,58385.0,0.023]
[1723701944936,0.119888,58388.0,58374.0,0.200415]
[1723701944937,0.1199,58382.0,58374.0,0.200415]
[1723701945139,1.2785,58384.0,58370.0,0.0805]
[1723701945332,1.2785,58384.0,58369.0,0.3093362]
[1723701945333,0.119922,58372.0,58369.0,0.0694852]
[1723701945557,0.17155454,58381.0,58369.0,0.0694852]
[1723701945558,0.17155454,58381.0,58369.0,0.0009042]
[1723701945774,0.119918,58373.0,58369.0,0.0009042]
[1723701945972,0.239818,58378.0,58369.0,0.0009042]
[1723701945973,0.359744,58375.0,58369.0,0.0009042]
[1723701946166,0.119915,58375.0,58370.0,0.119924]
[1723701946366,0.119915,58375.0,58369.0,0.0009042]
[1723701946567,0.119912,58376.0,58370.0,0.239847]
[1723701946767,0.119914,58375.0,58369.0,0.0009042]
[1723701947007,0.119914,58375.0,58371.0,0.119921]
[1723701947205,0.119914,58375.0,58374.0,0.001]
[1723701947420,0.011,58381.0,58373.0,0.0816]
[1723701947632,0.1199,58382.0,58377.0,0.119909]
[1723701947757,0.006,58376.0,58375.0,0.119913]
[1723701948184,0.119898,58383.0,58378.0,0.119907]
[1723701948383,0.1199,58382.0,58379.0,0.023]
[1723701948617,0.081,58387.0,58379.0,0.023]
[1723701948853,0.081,58387.0,58374.0,0.024]
[1723701948854,0.119904,58380.0,58374.0,0.024]
[1723701949052,0.119904,58380.0,58376.0,0.119912]
[1723701949188,0.119904,58380.0,58377.0,0.023]
[1723701949604,1.2785,58386.0,58377.0,0.142909]
[1723701949605,0.239796,58383.0,58377.0,0.142909]
[1723701949876,0.119904,58380.0,58375.0,0.119913]
[1723701950070,0.119904,58380.0,58374.0,0.024]
[1723701950071,0.11991,58377.0,58376.0,0.023]
[1723701950271,0.67595,58377.0,58376.0,0.023]
[1723701950556,0.119902,58381.0,58376.0,0.023]
[1723701950758,0.119904,58380.0,58376.0,0.023]
[1723701951039,0.248796,58383.0,58377.0,0.001]
[1723701951188,0.248796,58383.0,58378.0,0.119907]
[1723701951189,0.009,58383.0,58378.0,0.119907]
[1723701951389,0.128898,58383.0,58379.0,0.023]
[1723701951568,1.2785,58386.0,58379.0,0.023]
[1723701951782,0.119894,58385.0,58379.0,0.142904]
[1723701951980,0.008,58381.0,58379.0,0.142904]
[1723701952179,0.006,58380.0,58379.0,0.142904]
[1723701952409,0.006,58380.0,58379.0,0.023]
[1723701952798,0.006,58380.0,58378.0,0.142908]
[1723701952928,0.006,58380.0,58379.0,0.119906]
[1723701953129,0.006,58380.0,58379.0,0.142906]
[1723701953359,0.119896,58384.0,58380.0,0.119904]
[1723701953545,0.119896,58384.0,58381.0,0.023]
[1723701953754,0.119899,58382.0,58381.0,0.023]
[1723701954120,0.239792,58384.0,58379.0,0.024]
[1723701954391,0.239792,58384.0,58379.0,0.142905]
[1723701954633,0.006,58380.0,58379.0,0.143905]
[1723701955019,0.129897,58384.0,58379.0,0.023]
[1723701955020,0.119899,58383.0,58379.0,0.023]
[1723701955229,0.1199,58382.0,58378.0,0.142907]
[1723701955411,0.1259,58382.0,58381.0,0.001]
[1723701956087,0.006,58382.0,58381.0,0.001]
[1723701956552,0.119897,58383.0,58378.0,0.142907]
[1723701956750,0.119897,58383.0,58379.0,0.119905]
[1723701956990,0.119897,58383.0,58380.0,0.023]
[1723701957214,0.129896,58384.0,58380.0,0.023]
[1723701957459,0.119898,58383.0,58379.0,0.001]
[1723701957663,0.006,58382.0,58381.0,0.001]
[1723701958044,0.125899,58382.0,58381.0,0.001]
[1723701958242,0.006,58382.0,58381.0,0.001]
[1723701958415,0.006,58382.0,58381.0,0.024]
[1723701958623,0.119894,58385.0,58381.0,0.142901]
[1723701958799,0.119894,58385.0,58381.0,0.023]
[1723701959180,0.119896,58384.0,58381.0,0.023]
[1723701959383,0.17155454,58383.0,58372.0,0.0785]
[1723701959585,0.119909,58378.0,58373.0,0.119917]
[1723701959794,0.119913,58376.0,58371.0,0.119921]
[1723701960000,0.119913,58376.0,58372.0,0.119919]
[1723701960223,0.239813,58379.0,58370.0,0.3062522]
[1723701960224,0.119907,58379.0,58373.0,0.239836]
[1723701960424,0.239814,58379.0,58370.0,0.0664042]
[1723701960838,0.128908,58378.0,58374.0,0.119915]
[1723701961283,0.124908,58378.0,58375.0,0.023]
[1723701961464,0.119905,58380.0,58375.0,0.142913]
[1723701961662,0.124906,58379.0,58375.0,0.142913]
[1723701961863,0.130906,58379.0,58375.0,0.142913]
[1723701962466,0.130906,58379.0,58378.0,0.119908]
[1723701962467,0.011,58379.0,58378.0,0.119908]
[1723701962682,0.011,58379.0,58378.0,0.142908]
[1723701962893,0.011,58379.0,58378.0,0.382724]
[1723701963083,1.2785,58381.0,58379.0,0.119905]
[1723701963409,1.2785,58381.0,58380.0,0.023]
[1723701963567,1.2785,58381.0,58380.0,0.142904]
[1723701963822,1.2785,58381.0,58380.0,0.382712]
[1723701963993,1.2785,58381.0,58380.0,0.62252]
[1723701964199,1.2785,58381.0,58380.0,0.382712]
[1723701964618,1.2865,58381.0,58380.0,0.382712]
[1723701964814,1.2865,58381.0,58380.0,0.448712]
[1723701965142,1.2785,58381.0,58380.0,0.86552]
[1723701965558,1.2785,58381.0,58380.0,1.105328]
[1723701966620,0.000823,58383.0,58382.0,0.599497]
[1723701966838,0.000823,58383.0,58382.0,0.622497]
[1723701967052,0.000823,58383.0,58382.0,0.862296]
[1723701967490,0.00061706,58383.0,58382.0,0.862296]
[1723701967913,0.00061706,58383.0,58382.0,0.622497]
[1723701968589,0.00061706,58383.0,58382.0,0.862296]
[1723701968832,0.00061706,58383.0,58382.0,0.952796]
[1723701969040,0.00061706,58383.0,58382.0,0.712997]
[1723701969464,0.00061706,58383.0,58382.0,0.631497]
[1723701969686,0.00061706,58383.0,58382.0,0.151899]
[1723701970402,0.00061706,58383.0,58382.0,0.949796]
[1723701970828,0.00061706,58383.0,58382.0,0.945796]
[1723701971267,0.00061706,58383.0,58382.0,0.942796]
[1723701972158,0.00061706,58383.0,58382.0,0.946796]
[1723701972365,0.00061706,58383.0,58382.0,0.944796]
[1723701972574,0.00061706,58383.0,58382.0,1.044796]
[1723701973208,0.00061706,58383.0,58382.0,1.22651361]
[1723701973411,0.00061706,58383.0,58382.0,1.29011361]
[1723701974027,0.00061706,58383.0,58382.0,1.29411361]
[1723701974435,0.00061706,58383.0,58382.0,1.53391261]
[1723701975522,0.00061706,58383.0,58382.0,1.52591261]
[1723701975846,0.00261706,58383.0,58382.0,1.54591261]
[1723701977213,0.00061706,58383.0,58382.0,1.11455907]
[1723701977412,0.00061706,58383.0,58382.0,1.09155907]
[1723701977637,0.00061706,58383.0,58382.0,1.11655907]
[1723701978139,0.00061706,58383.0,58382.0,1.09155907]
[1723701978493,0.00061706,58383.0,58382.0,1.11255907]
[1723701978653,0.00061706,58383.0,58382.0,1.27311361]
[1723701979133,0.00061706,58383.0,58382.0,1.29711361]
[1723701979312,0.00061706,58383.0,58382.0,1.53691261]
[1723701979512,0.00061706,58383.0,58382.0,1.63891261]
[1723701979713,0.00061706,58383.0,58382.0,1.81664419]
[1723701980335,0.00061706,58383.0,58382.0,1.62791261]
[1723701980505,0.00061706,58383.0,58382.0,1.8056368]
[1723701980705,0.00061706,58383.0,58382.0,1.8176368]
[1723701980908,0.00061706,58383.0,58382.0,1.81563852]
[1723701981114,0.00061706,58383.0,58382.0,1.63691261]
[1723701981512,0.00061706,58383.0,58382.0,1.65091261]
[1723701981717,0.00061706,58383.0,58382.0,1.63991261]
[1723701982095,0.00061706,58383.0,58382.0,1.65391261]
[1723701982519,0.00061706,58383.0,58382.0,1.83163995]
[1723701982936,0.00061706,58383.0,58382.0,1.83363995]
[1723701983136,0.00061706,58383.0,58382.0,1.65591261]
[1723701983344,0.00061706,58383.0,58382.0,1.65391261]
[1723701983803,0.00061706,58383.0,58382.0,1.83164227]
[1723701984804,0.00061706,58383.0,58382.0,1.65391261]
[1723701984932,0.00061706,58383.0,58382.0,1.83163992]
[1723701985127,0.5,58400.0,58399.0,1.078785]
[1723701985334,0.5,58400.0,58399.0,2.11833954]
[1723701985535,0.35611715,58400.0,58399.0,1.72833954]
[1723701985751,0.35611715,58400.0,58399.0,1.96806954]
[1723701985950,0.35611715,58400.0,58399.0,2.81513449]
[1723701985951,0.06902001,58400.0,58399.0,2.81513449]
[1723701986165,1e-08,58400.0,58399.0,2.84941449]
[1723701986371,1e-08,58400.0,58399.0,2.87241449]
[1723701986569,1e-08,58400.0,58399.0,2.59840449]
[1723701987625,1e-08,58400.0,58399.0,2.36290449]
[1723701987855,1e-08,58400.0,58399.0,2.61140449]
[1723701988085,1e-08,58400.0,58399.0,2.60840423]
[1723701988273,1e-08,58400.0,58399.0,2.62140423]
[1723701988600,1e-08,58400.0,58399.0,2.28688328]
[1723701988801,1e-08,58400.0,58399.0,2.49961328]
[1723701988923,1e-08,58400.0,58399.0,2.51361328]
[1723701989122,1e-08,58400.0,58399.0,2.56189328]
[1723701989334,0.0803,58431.0,58428.0,0.359416]
[1723701989648,0.0803,58431.0,58428.0,0.622027]
[1723701990448,0.0803,58431.0,58428.0,0.861638]
[1723701992134,0.001823,58429.0,58428.0,0.861638]
[1723701992344,0.002823,58429.0,58428.0,0.861638]
[1723701992552,0.001823,58429.0,58428.0,0.861638]
[1723701992924,0.001823,58429.0,58428.0,0.622027]
[1723701993124,0.000823,58429.0,58428.0,0.622027]
[1723701993323,0.000823,58429.0,58428.0,0.625027]
[1723701994341,0.000823,58429.0,58428.0,0.864638]
[1723701994545,0.000823,58429.0,58428.0,0.863638]
[1723701994995,0.001823,58429.0,58428.0,0.863638]
[1723701995314,0.000823,58429.0,58428.0,1.177438]
[1723701995558,0.000823,58429.0,58428.0,1.280438]
[1723701995735,0.000823,58429.0,58428.0,1.284438]
[1723701995941,0.000823,58429.0,58428.0,1.280438]
[1723701996141,0.000823,58429.0,58428.0,1.277438]
[1723701996348,0.000823,58429.0,58428.0,1.281438]
[1723701996550,0.000823,58429.0,58428.0,1.204138]
[1723701997282,0.000823,58429.0,58428.0,0.964527]
[1723701997491,0.000823,58429.0,58428.0,0.729027]
[1723701997903,0.000823,58429.0,58428.0,0.725027]
[1723701998035,0.000823,58429.0,58428.0,0.731027]
[1723701998470,0.000823,58429.0,58428.0,0.722027]
[1723701998895,0.000823,58429.0,58428.0,0.728027]
[1723701999479,0.000823,58429.0,58428.0,1.51039254]
[1723702001555,0.000823,58429.0,58428.0,1.51639254]
[1723702002140,0.000823,58429.0,58428.0,1.51039254]
[1723702002683,0.000823,58429.0,58428.0,1.53339254]
[1723702007281,0.000823,58429.0,58428.0,1.77300354]
[1723702007481,0.000823,58429.0,58428.0,1.53339254]
[1723702008540,0.000823,58429.0,58428.0,1.77300354]
[1723702008743,0.000823,58429.0,58428.0,1.53339254]
[1723702011342,0.000823,58429.0,58428.0,1.220138]
[1723702013011,0.061823,58429.0,58428.0,0.501305]
[1723702013197,0.061823,58429.0,58428.0,0.382416]
[1723702013395,0.061823,58429.0,58428.0,0.142805]
[1723702014378,0.061823,58429.0,58428.0,0.359416]
[1723702014605,0.061823,58429.0,58425.0,0.01017639]
[1723702014606,0.137723,58429.0,58425.0,0.01017639]
[1723702014814,0.137723,58429.0,58426.0,0.119809]
[1723702015520,0.137723,58429.0,58419.0,0.475145]
[1723702015743,0.137723,58429.0,58421.0,0.119819]
[1723702015744,0.11981,58426.0,58421.0,0.119819]
[1723702015942,0.0819,58425.0,58421.0,0.119819]
[1723702016371,0.201712,58425.0,58421.0,0.119819]
[1723702016578,0.201712,58425.0,58413.0,0.23967]
[1723702016579,0.0637,58423.0,58413.0,0.23967]
[1723702016742,0.08577727,58427.0,58410.0,0.119842]
[1723702016743,0.0819,58412.0,58410.0,0.119842]
[1723702016951,0.0819,58412.0,58401.0,0.51466362]
[1723702017200,0.0819,58412.0,58403.0,0.119856]
[1723702017395,0.19675,58406.0,58402.0,0.119858]
[1723702017602,0.0769,58406.0,58400.0,0.0009053]
[1723702017804,0.0631,58405.0,58401.0,0.11986]
[1723702018169,0.0631,58405.0,58400.0,0.0009053]
[1723702018598,0.182952,58405.0,58400.0,0.0009053]
[1723702018797,0.182952,58405.0,58401.0,0.11986]
[1723702018798,0.0631,58405.0,58401.0,0.11986]
[1723702018999,0.0631,58405.0,58404.0,0.119854]
[1723702019126,0.0631,58405.0,58404.0,0.359563]
[1723702019330,0.004,58405.0,58404.0,0.359563]
[1723702019510,0.004,58405.0,58404.0,0.599272]
[1723702019714,0.004,58405.0,58404.0,0.359563]
[1723702019959,0.004,58405.0,58404.0,0.382563]
[1723702020131,0.004,58405.0,58404.0,0.622272]
[1723702020333,0.004,58405.0,58404.0,1.13353554]
[1723702020536,0.004,58405.0,58404.0,0.961981]
[1723702020827,0.002,58405.0,58404.0,0.961981]
[1723702021004,0.08577727,58415.0,58410.0,0.119841]
[1723702021141,0.08577727,58415.0,58404.0,0.362709]
[1723702021142,0.002,58405.0,58404.0,0.1]
[1723702021343,0.002,58405.0,58401.0,0.12086]
[1723702021344,0.0819,58404.0,58401.0,0.001]
[1723702021551,0.0819,58404.0,58403.0,0.119856]
[1723702021747,0.0819,58404.0,58403.0,0.359569]
[1723702022440,0.0605,58408.0,58407.0,0.119848]
[1723702022641,0.0605,58408.0,58407.0,0.142848]
[1723702022970,0.180346,58408.0,58407.0,0.023]
[1723702023344,0.180346,58408.0,58405.0,0.023]
[1723702023970,0.0784,58409.0,58405.0,0.262703]
[1723702024168,0.0784,58409.0,58408.0,0.359539]
[1723702024462,0.0784,58409.0,58408.0,0.382539]
[1723702024711,0.0784,58409.0,58408.0,0.622232]
[1723702025134,0.0784,58409.0,58408.0,0.382539]
[1723702025335,0.0804,58409.0,58408.0,0.142846]
[1723702025463,0.0824,58409.0,58408.0,0.142846]
[1723702025664,0.0824,58409.0,58408.0,0.382539]
[1723702025867,0.0784,58409.0,58408.0,0.142846]
[1723702026481,1.2785,58414.0,58413.0,0.119836]
[1723702026706,0.0799,58415.0,58414.0,0.119834]
[1723702026862,0.0799,58415.0,58414.0,0.359502]
[1723702027065,0.0799,58415.0,58414.0,0.023]
[1723702027270,0.0799,58415.0,58414.0,0.142834]
[1723702028437,0.0819,58415.0,58414.0,0.142834]
[1723702028643,0.0839,58415.0,58414.0,0.142834]
[1723702030426,0.09978489,58415.0,58414.0,0.142834]
[1723702030826,0.10178489,58415.0,58414.0,0.142834]
[1723702031420,0.09978489,58415.0,58414.0,0.142834]
[1723702031867,0.10260789,58415.0,58414.0,0.142834]
[1723702032587,0.10260789,58415.0,58414.0,0.382502]
[1723702032807,0.02270789,58415.0,58414.0,0.142834]
[1723702033023,0.02270789,58415.0,58414.0,0.382502]
[1723702033451,0.02270789,58415.0,58414.0,0.023]
[1723702033882,0.119836,58413.0,58412.0,0.023]
[1723702034089,0.119836,58413.0,58408.0,0.119845]
[1723702034821,0.239677,58412.0,58404.0,0.239708]
[1723702035022,0.062,58409.0,58405.0,0.1]
[1723702035267,0.062,58409.0,58406.0,0.239701]
[1723702035470,0.10160789,58415.0,58408.0,0.119846]
[1723702035471,0.119836,58413.0,58408.0,0.119846]
[1723702035620,0.064,58413.0,58408.0,0.119846]
[1723702036029,0.22144089,58415.0,58409.0,0.023]
[1723702036240,0.22144089,58415.0,58411.0,0.119839]
[1723702036447,0.22144089,58415.0,58409.0,0.239688]
[1723702036448,0.01870789,58415.0,58412.0,0.262675]
[1723702036644,0.01870789,58415.0,58414.0,0.119834]
[1723702036849,0.01870789,58415.0,58414.0,0.142834]
[1723702037507,0.01870789,58415.0,58414.0,0.382502]
[1723702037708,0.02070789,58415.0,58414.0,0.382502]
[1723702038132,0.01870789,58415.0,58414.0,0.382502]
[1723702038610,0.02070789,58415.0,58414.0,0.382502]
[1723702039418,0.02270789,58415.0,58414.0,0.62217]
[1723702039825,0.02070789,58415.0,58414.0,0.62217]
[1723702040694,0.02270789,58415.0,58414.0,0.62217]
[1723702040903,0.02270789,58415.0,58414.0,1.20959254]
[1723702041155,0.004823,58415.0,58414.0,1.20959254]
[1723702041308,0.002823,58415.0,58414.0,1.20959254]
[1723702042159,0.004823,58415.0,58414.0,1.20959254]
[1723702042454,0.002823,58415.0,58414.0,1.20959254]
[1723702042671,0.002823,58415.0,58414.0,1.21559254]
[1723702043020,0.000823,58415.0,58414.0,1.20959254]
[1723702043223,0.000823,58415.0,58414.0,1.46846981]
[1723702043425,0.01788489,58425.0,58424.0,0.980894]
[1723702043773,0.000823,58429.0,58428.0,0.599027]
[1723702043903,0.000823,58429.0,58428.0,0.961638]
[1723702044253,0.000823,58429.0,58428.0,1.042938]
[1723702044659,0.000823,58429.0,58428.0,0.861638]
[1723702044809,0.000823,58429.0,58428.0,0.622027]
[1723702045338,0.000823,58429.0,58428.0,0.382416]
[1723702046125,0.000823,58429.0,58428.0,0.383416]
[1723702046334,0.000823,58429.0,58428.0,0.385416]
[1723702046538,0.000823,58429.0,58428.0,0.002]
[1723702046741,0.000823,58429.0,58428.0,0.023]
[1723702046944,0.000823,58429.0,58428.0,0.024]
[1723702047140,0.000823,58429.0,58428.0,0.026]
[1723702047637,0.000823,58429.0,58428.0,0.144805]
[1723702047972,0.000823,58429.0,58428.0,0.025]
[1723702048172,0.120626,58429.0,58428.0,0.002]
[1723702048369,0.120626,58429.0,58426.0,0.023]
[1723702049822,1.2785,58428.0,58426.0,0.142809]
[1723702050221,1.2785,58428.0,58427.0,0.119807]
[1723702050458,1.2785,58428.0,58427.0,0.622037]
[1723702052019,1.2785,58428.0,58427.0,0.023]
[1723702052422,1.2785,58428.0,58426.0,0.023]
[1723702052656,1.2785,58428.0,58426.0,0.119808]
[1723702052857,1.2785,58428.0,58427.0,0.023]
[1723702053985,1.2785,58428.0,58425.0,0.023]
[1723702054180,1.2785,58428.0,58425.0,0.142811]
[1723702054558,1.2785,58428.0,58425.0,0.023]
[1723702054816,1.2785,58428.0,58425.0,0.142811]
[1723702055297,1.279323,58428.0,58425.0,0.142811]
[1723702055652,1.279323,58428.0,58427.0,0.119807]
[1723702055879,0.000823,58428.0,58427.0,0.023]
[1723702056059,0.000823,58428.0,58426.0,0.023]
[1723702056645,0.000823,58428.0,58424.0,0.119812]
[1723702056848,0.000823,58428.0,58425.0,0.023]
[1723702057316,0.0784,58427.0,58425.0,0.023]
[1723702057691,0.0784,58427.0,58425.0,0.142811]
[1723702059353,0.0784,58427.0,58426.0,0.119809]
[1723702059488,0.000823,58428.0,58426.0,0.142809]
[1723702060058,0.000823,58428.0,58427.0,0.023]
[1723702060678,0.000823,58428.0,58426.0,0.142808]
[1723702061051,0.000823,58428.0,58426.0,0.023]
[1723702061664,0.000823,58428.0,58426.0,0.142809]
[1723702062870,0.000823,58428.0,58426.0,0.023]
[1723702063093,0.000823,58428.0,58426.0,0.142808]
[1723702063305,0.000823,58428.0,58427.0,0.599037]
[1723702063515,0.000823,58428.0,58427.0,0.622037]
[1723702063721,0.000823,58428.0,58427.0,0.382422]
[1723702064902,0.000823,58428.0,58427.0,0.142807]
[1723702065509,0.000823,58428.0,58427.0,0.023]
[1723702065510,0.083923,58428.0,58427.0,0.023]
[1723702065670,0.083923,58428.0,58426.0,0.023]
[1723702066248,0.083923,58428.0,58425.0,0.023]
[1723702066460,0.083923,58428.0,58425.0,0.142811]
[1723702067217,0.000823,58428.0,58427.0,0.119807]
[1723702067430,0.000823,58428.0,58427.0,0.142807]
[1723702068233,0.000823,58428.0,58427.0,0.622037]
[1723702068801,0.000823,58428.0,58427.0,0.382422]
[1723702069548,0.000823,58428.0,58427.0,0.023]
[1723702069755,0.000823,58428.0,58426.0,0.023]
[1723702069951,0.000823,58428.0,58423.0,0.24979382]
[1723702069952,0.000823,58428.0,58425.0,0.142811]
[1723702073800,0.120629,58428.0,58425.0,0.023]
[1723702074045,0.119811,58425.0,58424.0,0.023]
[1723702074195,0.119816,58423.0,58421.0,0.023]
[1723702074407,0.119816,58423.0,58420.0,0.023]
[1723702075194,0.264612,58425.0,58420.0,0.142821]
[1723702075873,0.119813,58424.0,58420.0,0.142821]
[1723702076398,0.001,58423.0,58420.0,0.142821]
[1723702076845,0.119813,58424.0,58420.0,0.142821]
[1723702077058,0.119816,58423.0,58420.0,0.023]
[1723702077223,0.119816,58423.0,58419.0,0.119822]
[1723702077426,0.119816,58423.0,58420.0,0.023]
[1723702078121,0.264613,58425.0,58421.0,0.119819]
[1723702078394,0.003,58424.0,58422.0,0.023]
[1723702078586,0.003,58424.0,58423.0,0.119815]
[1723702078801,0.0511238,58426.0,58425.0,0.119811]
[1723702079008,0.0511238,58426.0,58423.0,0.323531]
[1723702079009,0.0519738,58428.0,58426.0,0.119809]
[1723702079422,0.0511508,58427.0,58426.0,0.119809]
[1723702079628,0.0511508,58427.0,58426.0,0.382428]
[1723702079827,0.0519738,58428.0,58426.0,0.382428]
[1723702080052,0.000823,58428.0,58427.0,0.023]
[1723702080259,0.0519738,58428.0,58427.0,0.023]
[1723702080432,0.003823,58428.0,58427.0,0.023]
[1723702081010,0.359422,58427.0,58426.0,0.001]
[1723702081213,0.599037,58427.0,58426.0,0.001]
[1723702081424,0.7587632,58427.0,58426.0,0.001]
[1723702081792,0.119814,58424.0,58421.0,0.023]
[1723702082427,0.119814,58424.0,58401.0,0.18577727]
[1723702082428,0.11983,58416.0,58415.0,0.0009053]
[1723702082624,1.11857421,58416.0,58415.0,0.0009053]
[1723702082827,1.35823421,58416.0,58415.0,0.0009053]
[1723702083056,1.57893689,58416.0,58415.0,0.0009053]
[1723702083247,0.74055721,58416.0,58401.0,0.01021728]
[1723702083449,0.74055721,58416.0,58400.0,0.0009053]
[1723702083450,0.05118345,58407.0,58406.0,0.11985]
[1723702083649,0.05118345,58407.0,58406.0,0.359551]
[1723702083969,0.05118345,58407.0,58406.0,0.11985]
[1723702084327,0.07677517,58408.0,58406.0,0.11985]
[1723702084550,0.07677517,58408.0,58406.0,0.023]
[1723702084752,0.119854,58405.0,58401.0,0.11986]
[1723702084958,0.17104648,58405.0,58401.0,0.11986]
[1723702085356,0.05119248,58404.0,58400.0,0.0009053]
[1723702085634,0.119856,58403.0,58400.0,0.0009053]
[1723702085834,0.05119248,58404.0,58401.0,0.11986]
[1723702086044,0.05119248,58404.0,58400.0,0.0009053]
[1723702086265,0.05119248,58404.0,58400.0,0.1207673]
[1723702086441,0.05121843,58404.0,58402.0,0.239717]
[1723702086642,0.002,58404.0,58403.0,0.599282]
[1723702087085,0.05122027,58405.0,58404.0,0.599272]
[1723702087086,0.05322027,58405.0,58404.0,0.599272]
[1723702087290,0.002,58405.0,58404.0,0.622272]
[1723702087708,0.05122027,58406.0,58404.0,0.622272]
[1723702087709,0.05122027,58406.0,58405.0,0.599262]
[1723702087913,0.05122027,58406.0,58405.0,0.622262]
[1723702088127,0.05118971,58408.0,58406.0,0.239701]
[1723702088454,0.05118971,58409.0,58408.0,0.119846]
[1723702088562,0.05118971,58409.0,58408.0,0.225046]
[1723702088772,0.07683041,58410.0,58408.0,0.142846]
[1723702088973,0.07683041,58410.0,58409.0,0.142844]
[1723702089632,0.05116696,58410.0,58409.0,0.142844]
[1723702089974,0.05116696,58411.0,58409.0,0.142844]
[1723702090187,0.05316696,58410.0,58409.0,0.142844]
[1723702090405,0.07683041,58411.0,58410.0,0.119842]
[1723702090660,0.05115006,58411.0,58410.0,0.142842]
[1723702090863,0.05115006,58411.0,58410.0,0.023]
[1723702091197,0.05115032,58411.0,58410.0,0.023]
[1723702091401,0.07672548,58411.0,58408.0,0.023]
[1723702091604,0.05115058,58409.0,58408.0,0.023]
[1723702091800,0.05115058,58410.0,58408.0,0.023]
[1723702092050,0.05115058,58410.0,58408.0,0.119846]
[1723702092270,0.05315058,58411.0,58409.0,0.023]
[1723702093051,0.17099158,58411.0,58409.0,0.023]
[1723702093301,0.17099158,58411.0,58407.0,0.119847]
[1723702093520,0.17499158,58411.0,58408.0,0.023]
[1723702093742,0.123841,58411.0,58408.0,0.023]
[1723702093968,0.002,58411.0,58408.0,0.023]
[1723702094189,0.119838,58412.0,58408.0,0.142846]
[1723702094332,0.004,58411.0,58408.0,0.142846]
[1723702094536,0.002,58411.0,58410.0,0.119842]
[1723702094780,0.06903547,58413.0,58410.0,0.142842]
[1723702095009,0.18887147,58413.0,58408.0,0.023]